[Event "13th KIIT Festival-A 2022"]
[Site "Bhubaneswar"]
[Date "2022.05.25"]
[Round "5.10"]
[White "Karthikeyan, P.."]
[Black "Priyankara, Chamil"]
[Result "1/2-1/2"]
[ECO "B12"]
[WhiteElo "2361"]
[BlackElo "1938"]
[Annotator "TA"]
[PlyCount "60"]
[EventDate "2022.05.15"]
[EventType "swiss"]
[EventCountry "IND"]
[SourceTitle "playchess.com"]
[Source "ChessBase"]
[SourceQuality "1"]
[TimeControl "5400+30"]

{[%evp 9,60,6,17,14,14,19,24,24,33,26,29,27,46,37,38,42,85,83,92,122,108,56,66,23,122,124,106,122,84,12,128,85,82,88,81,69,90,0,0,-12,0,0,0,0,0,0,0,0,0,0,4,-29,-38]} 1. e4 {[%emt 0:00:06]} c6 {[%emt 0:00:06]} 2. d4 {[%emt 0:00:17]} d5 {[%emt 0:00:03]} 3. e5 {[%emt 0:00:10]} Bf5 {[%emt 0:00:14]} 4. Nd2 {[%emt 0:00:08]} e6 {[%emt 0:00:40]} 5. Nb3 {[%emt 0:00:04]} a6 {[%emt 0:00:57]} 6. Nf3 {[%emt 0:01:45] B12: Caro-Kann: Advance Variation.} c5 {[%emt 0:04:28]} 7. dxc5 {[%emt 0:01:11]} Bxc5 {[%emt 0:00:07]} 8. Nxc5 {[%emt 0:00:18] White has an edge.} Qa5+ {[%emt 0:00:02]} 9. c3 {[%emt 0:00:09]} Qxc5 {[%emt 0:00:04]} 10. Nd4 {[%emt 0:00:18]} Bg6 {[%emt 0:01:34]} 11. Qa4+ {[%emt 0:02:22]} Nd7 $1 {[%emt 0:09:17] [#]} 12. Nb5 $1 {[%emt 0:02:20]} Rb8 {[%emt 0:22:23]} (12... Kf8 13. Be3) 13. Nd6+ {[%emt 0:02:39]} Kd8 {[%emt 0:03:48]} 14. Be3 $36 {[%emt 0:01:51][%mdl 2048] Black is under strong pressure.} Qc6 {[%emt 0:02:18]} 15. Qb4 {[%emt 0:04:16] White is much more active.} (15. Qa5+ $16 Qc7 16. Qb4) 15... Nxe5 $14 {[%emt 0:07:06]} 16. Ba7 {[%emt 0:14:08] [#]} (16. Rd1 $5 {[%cal Re3a7]}) 16... Ra8 $146 {[%emt 0:01:30]} (16... Kc7 $1 $11) ({Predecessor:} 16... Kc7 17. Bxb8+ Kxb8 18. f4 Nd7 19. f5 exf5 20. Be2 Nh6 21. h4 Kc7 22. Nxb7 Qxb7 23. Qxb7+ Kxb7 {1-0 (69) Popov,I (2549)-Rombaldoni,D (2418) Gaziantep 2008}) 17. Nxb7+ {[%emt 0:01:35]} Ke8 {[%emt 0:02:39]} 18. Bd4 {[%emt 0:11:57]} f6 {[%emt 0:01:56]} 19. O-O-O {[%emt 0:03:12]} (19. f4 $16 Nf7 20. Na5) 19... Nf7 {[%emt 0:04:50]} (19... Ne7 $11 {remains equal.}) 20. Na5 {[%emt 0:03:22] Dancing on a razor blade.} Qd7 {[%emt 0:01:06]} 21. Bc5 {[%emt 0:02:11] Threatens to win with f4.} Ne7 {[%emt 0:03:41]} 22. f4 {[%emt 0:10:51]} Nc6 {[%emt 0:05:52] [#]} 23. Nxc6 {[%emt 0:07:56]} (23. Qb7 $1 $16 {[%cal Rb7a8]} Qxb7 24. Nxb7) 23... Qxc6 $11 {[%emt 0:00:02]} 24. Qa3 {[%emt 0:00:13]} Nd8 {[%emt 0:01:22][%cal Bf7d8,Bd8b7,Bb7d6,Bd6b5,Bb5d4][%mdl 32]} 25. g4 {[%emt 0:04:44][%cal Of4f5,Bg2g4,Bg4g5][%mdl 32] Strongly threatening f5!} Be4 {[%emt 0:00:30] Inhibits f5.} 26. Rg1 {[%emt 0:00:20]} Nb7 {[%emt 0:03:17]} 27. Bd4 {[%emt 0:00:30] A strong pair of Bishops.} Kf7 {[%emt 0:00:59]} 28. g5 {[%emt 0:00:59] gxf6 is the strong threat.} Nd6 {[%emt 0:07:02]} 29. Be2 {[%emt 0:01:21]} Nb5 {[%emt 0:17:07]} 30. Qa5 {[%emt 0:03:33]} Nxd4 {[%emt 0:00:00] Weighted Error Value: White=0.16 (very precise) /Black=0.19 (very precise)} 1/2-1/2

[Event "13th KIIT Festival-A 2022"]
[Site "Bhubaneswar"]
[Date "2022.05.25"]
[Round "5.11"]
[White "Laxman, R.R."]
[Black "Chidvilash Sai Surapaneni"]
[Result "0-1"]
[ECO "E97"]
[WhiteElo "2420"]
[BlackElo "1912"]
[Annotator "TA"]
[PlyCount "70"]
[EventDate "2022.05.15"]
[EventType "swiss"]
[EventCountry "IND"]
[SourceTitle "playchess.com"]
[Source "ChessBase"]
[SourceQuality "1"]
[TimeControl "5400+30"]

{[%evp 26,70,100,78,131,132,164,173,195,152,152,155,160,158,154,0,0,0,0,-22,-15,-23,-27,-22,-25,-20,-20,-106,-110,-469,-469,-469,-461,-488,-491,-491,-491,-657,-658,-971,-985,-29988,-29989,-29990,-29991,-29993,-29994]} 1. d4 {[%emt 0:00:02]} Nf6 {[%emt 0:03:15]} 2. Nf3 {[%emt 0:00:15]} g6 {[%emt 0:00:37]} 3. c4 {[%emt 0:00:35]} Bg7 {[%emt 0:00:53]} 4. Nc3 {[%emt 0:00:05]} O-O {[%emt 0:00:59]} 5. e4 {[%emt 0:00:20]} d6 {[%emt 0:00:25]} 6. Be2 {[%emt 0:00:07]} e5 {[%emt 0:00:05]} 7. O-O {[%emt 0:00:08]} Nc6 {[%emt 0:00:02]} 8. d5 {[%emt 0:00:30]} Ne7 {[%emt 0:00:02]} 9. b4 {[%emt 0:00:21]} Ne8 {[%emt 0:00:21]} 10. c5 {[%emt 0:01:15]} f5 {[%emt 0:00:01]} 11. Nd2 {[%emt 0:06:32][%cal Bf3d2,Bd2c4,Bc4e5][%mdl 32]} Nf6 {[%emt 0:02:46]} 12. f3 {[%emt 0:00:24]} f4 {[%emt 0:00:05]} 13. Nc4 {[%emt 0:00:19]} g5 {[%emt 0:01:00]} 14. Ba3 {[%emt 0:00:25]} Rf7 {[%emt 0:08:15] E97: King's Indian: Classical Main Line (6...e5 7 0-0 Nc6): 8 Be3 and 8 d5 Ne7, not 9 Ne1.} (14... Ng6 $142) 15. b5 $16 {[%emt 0:00:26][%cal Rc5d6]} dxc5 {[%emt 0:00:26] [#]} 16. Nxe5 $146 {[%emt 0:03:43]} ({Predecessor:} 16. Bxc5 Ng6 17. Kh1 Bf8 18. Bg1 h5 19. a4 g4 20. a5 g3 21. b6 h4 22. Nb5 {0-1 (36) De Melo,R (1531)-Di Simoni,R (1473) Goiania 2015}) 16... Rf8 {[%emt 0:00:33] [#] Threatens to win with ...Ne8. White is clearly better.} 17. Bxc5 {[%emt 0:02:22]} Nxe4 {[%emt 0:02:36]} 18. Nxe4 {[%emt 0:00:05]} (18. fxe4 $6 Bxe5 19. Rc1 Re8 $14) 18... Bxe5 {[%emt 0:00:06]} 19. Rc1 {[%emt 0:02:19]} ({Don't take} 19. Nxg5 $6 b6 20. Bd4 Qxd5 21. Bxe5 Qxe5 22. Bc4+ Kg7 $14) 19... Nf5 {[%emt 0:00:19]} 20. d6 $2 {[%emt 0:04:06]} ({White should play} 20. Bxf8 $16 Kxf8 21. Re1) 20... cxd6 $11 {[%emt 0:13:40]} 21. Qd5+ {[%emt 0:00:06]} Kg7 {[%emt 0:10:37] [#] White must now prevent ...Ne7.} 22. Rfd1 {[%emt 0:01:49][%cal Rc5d6]} Qe7 {[%emt 0:00:58]} 23. Nxd6 {[%emt 0:01:07]} Bxd6 {[%emt 0:00:59]} (23... Nxd6 {with more complications.} 24. Bxd6 Bxd6 25. Qxd6 Qxe2 26. Rc7+ Rf7) 24. Bxd6 {[%emt 0:00:02]} Nxd6 {[%emt 0:00:11]} 25. Qxd6 {[%emt 0:00:01]} Qxe2 {[%emt 0:00:17]} 26. Re1 {[%emt 0:00:04]} (26. Rc7+ $1 $11 Rf7 27. Qd5) 26... Qxb5 $17 {[%emt 0:18:55]} 27. Qd4+ {[%emt 0:36:24][%mdl 8192] Now White is beyond hope.} (27. Rc7+ $17 Kg8 28. Rc5 (28. Qe7 $2 Qb6+ 29. Kh1 Qg6 $19)) 27... Kg6 $19 {[%emt 0:10:28]} ({Stronger than} 27... Rf6 28. h4 Qb6 29. Rc5 $19) 28. Re7 {[%emt 0:00:15] White wants to mate with Qg7+.} Qb6 {[%emt 0:01:40]} 29. Rc5 {[%emt 0:00:06]} Bf5 {[%emt 0:03:52]} 30. h4 {[%emt 0:00:49] Qg7+ would kill now.} Qf6 {[%emt 0:02:42] Prevents Qg7+.} 31. Rce5 {[%emt 0:00:10]} Rfd8 {[%emt 0:02:22]} 32. Qc5 {[%emt 0:00:24][%cal Oe5f5] Rxf5! is the strong threat.} Rac8 {[%emt 0:01:17] ( -> ...Rd1+)} 33. Qxa7 {[%emt 0:00:13]} Rc1+ {[%emt 0:01:49] Black mates.} 34. Kh2 {[%emt 0:00:01]} Rdd1 {[%emt 0:00:26][%csl Gc1][%cal Rd1h1]} 35. g4 {[%emt 0:00:04]} fxg3+ {[%emt 0:00:27] Weighted Error Value: White=0.89/Black=0.05 (flawless)} 0-1

[Event "13th KIIT Festival-A 2022"]
[Site "Bhubaneswar"]
[Date "2022.05.25"]
[Round "5.11"]
[White "Karthikeyan, P.."]
[Black "Chidvilash Sai Surapaneni"]
[Result "*"]
[ECO "B12"]
[WhiteElo "2361"]
[BlackElo "1912"]
[Annotator "TA"]
[PlyCount "36"]
[EventDate "2022.05.15"]
[EventType "swiss"]
[EventCountry "IND"]
[SourceTitle "playchess.com"]
[Source "ChessBase"]
[SourceQuality "1"]
[TimeControl "5400+30"]

{[%evp 9,23,3,13,7,24,5,29,27,34,23,26,24,50,45,68,61]} 1. e4 {[%emt 0:00:06]} c6 {[%emt 0:00:06]} 2. d4 {[%emt 0:00:17]} d5 {[%emt 0:00:03]} 3. e5 {[%emt 0:00:10]} Bf5 {[%emt 0:00:14]} 4. Nd2 {[%emt 0:00:08]} e6 {[%emt 0:00:40]} 5. Nb3 {[%emt 0:00:04]} a6 {[%emt 0:00:57]} 6. Nf3 {[%emt 0:01:45][%cal Bg1f3,Bf3d4,Bd4b5][%mdl 32] B12: Caro-Kann: Advance Variation.} c5 {[%emt 0:04:28]} 7. dxc5 {[%emt 0:01:11]} Bxc5 {[%emt 0:00:07]} 8. Nxc5 {[%emt 0:00:18] White has an edge.} Qa5+ {[%emt 0:00:02]} 9. c3 {[%emt 0:00:09]} Qxc5 {[%emt 0:00:04]} 10. Nd4 {[%emt 0:00:18] Be3 is the strong threat.} Bg6 {[%emt 0:01:34]} 11. Qa4+ {[%emt 0:02:22]} Nd7 $1 {[%emt 0:09:17] [#]} 12. Nb5 $1 {[%emt 0:02:20] [#]  Weighted Error Value: White=0.04 (flawless) /Black=0.11 (very precise)} {Predecessor:} Rb8 $146 13. Nd6+ Kd8 14. Be3 Qc6 15. Qb4 Nxe5 16. Ba7 Kc7 17. Bxb8+ Kxb8 18. f4 Nd7 {1-0 (69) Popov,I (2549)-Rombaldoni,D (2418) Gaziantep 2008} *

[Event "13th KIIT Festival-A 2022"]
[Site "Bhubaneswar"]
[Date "2022.05.25"]
[Round "5.12"]
[White "Mayank Chakraborty"]
[Black "Konguvel, Ponnuswamy"]
[Result "1-0"]
[ECO "B77"]
[WhiteElo "2015"]
[BlackElo "2331"]
[Annotator "TA"]
[PlyCount "97"]
[EventDate "2022.05.15"]
[EventType "swiss"]
[EventCountry "IND"]
[SourceTitle "playchess.com"]
[Source "ChessBase"]
[SourceQuality "1"]
[TimeControl "5400+30"]

{[%evp 22,97,15,0,18,25,18,19,37,21,15,16,37,19,33,33,37,0,2,0,0,0,0,0,11,8,7,0,14,0,0,0,0,0,0,0,0,0,0,0,0,0,0,0,0,0,146,146,133,135,137,144,152,126,212,184,207,95,568,568,563,477,1689,1637,1550,1352,1836,1815,12797,12789,29980,29981,29983,29984,29984,29967,29996,29997]} 1. e4 {[%emt 0:00:04]} c5 {[%emt 0:00:11]} 2. Nf3 {[%emt 0:00:05]} g6 {[%emt 0:01:07]} 3. d4 {[%emt 0:00:08]} cxd4 {[%emt 0:00:05]} 4. Nxd4 {[%emt 0:00:07]} Nc6 {[%emt 0:00:18]} 5. Nc3 {[%emt 0:00:10]} Bg7 {[%emt 0:00:11]} 6. Be3 {[%emt 0:00:06]} Nf6 {[%emt 0:00:15]} 7. Bc4 {[%emt 0:00:16]} O-O {[%emt 0:00:58]} 8. Bb3 {[%emt 0:00:04]} d6 {[%emt 0:02:02]} 9. f3 {[%emt 0:00:12]} Bd7 {[%emt 0:01:08]} 10. Qd2 {[%emt 0:00:22]} Nxd4 {[%emt 0:01:34]} 11. Bxd4 {[%emt 0:00:16]} b5 {[%emt 0:00:07]} 12. a4 {[%emt 0:00:26]} bxa4 {[%emt 0:03:49] B77: Sicilian Dragon: Yugoslav Attack, 9 Bc4 sidelines.} 13. Bxa4 {[%emt 0:00:08]} Bxa4 {[%emt 0:06:45]} 14. Rxa4 {[%emt 0:00:02]} Qb8 {[%emt 1:19:00] The position is equal.} 15. O-O {[%emt 0:03:31]} Rc8 {[%emt 0:00:00]} 16. b3 {[%emt 0:01:35]} Qb7 {[%emt 0:00:00]} 17. Kh1 {[%emt 0:06:33]} e6 {[%emt 0:00:00]} 18. Rfa1 {[%emt 0:02:53][%cal Ra4a7]} a6 {[%emt 0:00:00] [#]} 19. Ra5 $146 {[%emt 0:09:28]} ({Predecessor:} 19. R1a2 Rc6 20. Ne2 Rac8 21. Be3 d5 22. e5 Nd7 23. Rb4 Qa8 24. Nd4 R6c7 25. f4 {½-½ (32) Nayhebaver,M (2471)-Seres,L (2422) Hungary 2019}) 19... Qc6 {[%emt 0:00:00]} 20. R1a2 {[%emt 0:03:00]} e5 {[%emt 0:00:00]} 21. Nd5 {[%emt 0:00:06]} Nxd5 {[%emt 0:00:00]} 22. exd5 {[%emt 0:00:02]} Qe8 {[%emt 0:00:00]} 23. Bg1 {[%emt 0:00:52]} e4 $1 {[%emt 0:00:00]} 24. Rxa6 {[%emt 0:14:09]} exf3 {[%emt 0:00:00]} 25. Rxa8 {[%emt 0:06:50]} (25. gxf3 {with more complications.} Rxa6 26. Rxa6 Rc3 27. Kg2) 25... fxg2+ {[%emt 0:00:00]} 26. Kxg2 {[%emt 0:00:06]} Rxa8 {[%emt 0:00:00]} 27. Rxa8 {[%emt 0:00:03]} Qxa8 $11 {[%emt 0:00:00][%mdl 4096] Endgame KQB-KQB} 28. c4 {[%emt 0:00:56]} h5 {[%emt 0:00:00]} 29. b4 {[%emt 0:01:19]} Qc8 {[%emt 0:00:00]} 30. Qe2 {[%emt 0:01:55]} Qf5 {[%emt 0:00:00]} 31. b5 {[%emt 0:03:05]} h4 {[%emt 0:00:00]} 32. h3 $1 {[%emt 0:03:34]} Be5 {[%emt 0:00:00]} 33. b6 {[%emt 0:02:59]} Qb1 {[%emt 0:02:48]} (33... Qg5+ $11 {keeps the balance.} 34. Qg4 Qd2+ 35. Bf2 (35. Kh1 Kg7 $11) 35... Kg7) 34. c5 $16 {[%emt 0:01:07] [#] Threatens to win with c6.} Qb3 {[%emt 0:00:44]} 35. c6 {[%emt 0:00:09] Strongly threatening Qf3.} Qg3+ {[%emt 0:01:12]} 36. Kh1 {[%emt 0:01:14] White threatens Qe3 and mate.} Qxh3+ {[%emt 0:00:24]} 37. Bh2 {[%emt 0:00:01]} Bxh2 {[%emt 0:01:14] [#]} 38. Qg2 $1 {[%emt 0:00:13]} (38. Qxh2 Qf1+ 39. Qg1 Qh3+ 40. Qh2 Qf1+ 41. Qg1 Qh3+ 42. Qh2 $11) 38... Qb3 {[%emt 0:02:25] ...Be5 is the strong threat.} 39. c7 {[%emt 0:01:56]} ({Worse is} 39. Qxh2 Qxb6 40. Qxd6 Qb1+ 41. Kh2 Qc2+ 42. Kh3 Qd3+ 43. Kxh4 Qe4+ 44. Kh3 Qf3+ 45. Kh4 Qe4+ 46. Kh3 Qf3+ 47. Kh4 Qe4+ $11) 39... Bg3 $2 {[%emt 0:00:42][%mdl 8192] This costs Black the game.} (39... Qc3 $16 {is a better chance.} 40. Qg4 (40. Qxh2 Kg7 $18) 40... Qa1+ 41. Kxh2 Qe5+ 42. Kh1 Qe1+ 43. Qg1 Qe4+ 44. Qg2 Qe1+ 45. Kh2 Qe5+ 46. Kg1 Qc3) 40. c8=Q+ $18 {[%emt 0:00:07]} Kg7 {[%emt 0:00:14]} 41. Qc1 {[%emt 0:00:18] Against Qd1+} ({And not} 41. b7 Qb1+ 42. Qg1 Qe4+ 43. Qg2 Qb1+ 44. Qg1 Qe4+ 45. Qg2 Qb1+ $11) 41... Be5 {[%emt 0:00:45] Against Qcb2} (41... Qxb6 $142 42. Qgb2+ Qxb2 43. Qxb2+ Be5) 42. Qcg1 {[%emt 0:05:58]} h3 {[%emt 0:00:51]} 43. Qe4 {[%emt 0:00:17] Hoping for Qgb1.} Qb2 {[%emt 0:00:43]} 44. Qf3 {[%emt 0:01:08] White wants to mate with Qgf2.} Bd4 {[%emt 0:01:56] Inhibits Qgf2.} 45. Qgf1 {[%emt 0:00:33]} f5 {[%emt 0:00:21]} 46. Q3e2 {[%emt 0:01:40] White mates.} Qxb6 {[%emt 0:01:05]} 47. Qe7+ {[%emt 0:00:10]} Kg8 {[%emt 0:00:05]} 48. Qc1 {[%emt 0:00:56]} Bc5 {[%emt 0:00:22]} 49. Qa1 {[%emt 0:00:25] Weighted Error Value: White=0.04 (flawless) /Black=0.62} 1-0

[Event "13th KIIT Festival-A 2022"]
[Site "Bhubaneswar"]
[Date "2022.05.25"]
[Round "5.13"]
[White "Koustav Chakraborty"]
[Black "Aaryan Varshney"]
[Result "1/2-1/2"]
[ECO "B52"]
[WhiteElo "1945"]
[BlackElo "2308"]
[Annotator "TA"]
[PlyCount "60"]
[EventDate "2022.05.15"]
[EventType "swiss"]
[EventCountry "IND"]
[SourceTitle "playchess.com"]
[Source "ChessBase"]
[SourceQuality "1"]
[TimeControl "5400+30"]

{[%evp 21,60,14,41,0,0,22,12,4,31,19,24,34,26,19,37,0,0,6,31,30,23,31,29,34,33,31,31,41,83,64,71,50,50,41,39,19,18,18,21,10,2]} 1. e4 {[%emt 0:00:02]} c5 {[%emt 0:03:22]} 2. Nf3 {[%emt 0:00:08]} d6 {[%emt 0:00:10]} 3. Bb5+ {[%emt 0:00:06]} Bd7 {[%emt 0:00:08]} 4. Bxd7+ {[%emt 0:00:06]} Qxd7 {[%emt 0:00:05]} 5. c4 {[%emt 0:00:10]} Nc6 {[%emt 0:00:06]} 6. d4 {[%emt 0:00:07]} cxd4 {[%emt 0:00:05]} 7. Nxd4 {[%emt 0:00:06]} Nf6 {[%emt 0:00:08]} 8. Nc3 {[%emt 0:00:05]} g6 {[%emt 0:00:05]} 9. f3 {[%emt 0:00:05]} Bg7 {[%emt 0:00:04]} 10. Be3 {[%emt 0:00:06]} O-O {[%emt 0:00:11]} 11. O-O {[%emt 0:00:08]} a6 {[%emt 0:00:02]} 12. a4 {[%emt 0:00:16] B52: Sicilian: Moscow Variation with 3...Bd7.} Qc7 {[%emt 0:01:40]} 13. b3 {[%emt 0:00:26]} Qa5 {[%emt 0:00:55] [#]} 14. Qd3 $146 {[%emt 0:06:22]} ({Predecessor:} 14. Qd2 Rfc8 15. Rfd1 Rab8 16. Rab1 Nd7 17. Nde2 Qd8 18. Kh1 Nc5 19. Nd5 e6 20. Ndc3 {½-½ (57) Tiviakov,S (2686)-Ivanchuk,V (2786) Benidorm 2008}) 14... Rac8 {[%emt 0:04:26]} 15. Rab1 {[%emt 0:04:25]} Ne5 {[%emt 0:08:48]} 16. Qd2 {[%emt 0:04:18]} e6 {[%emt 0:02:55]} 17. h3 {[%emt 0:02:51]} Rfd8 {[%emt 0:05:17]} 18. f4 {[%emt 0:05:06]} Nc6 {[%emt 0:01:37]} 19. Nxc6 {[%emt 0:00:36]} Rxc6 {[%emt 0:04:43]} 20. Rfd1 {[%emt 0:14:36]} Nh5 {[%emt 0:08:05]} 21. Ne2 {[%emt 0:21:59]} Qxd2 {[%emt 0:03:01]} 22. Rxd2 {[%emt 0:00:06][%cal Oe4e5]} Nf6 {[%emt 0:04:18]} 23. Ng3 {[%emt 0:08:15]} Rdc8 {[%emt 0:12:31]} 24. Rbd1 {[%emt 0:03:27]} Ne8 {[%emt 0:00:45]} 25. Ne2 {[%emt 0:00:40] White is more active.} h5 {[%emt 0:02:51]} 26. Kf2 {[%emt 0:04:47]} (26. Nd4 $5 {[%cal Rd4c6]}) 26... f5 {[%emt 0:09:06]} 27. exf5 {[%emt 0:00:13]} gxf5 {[%emt 0:00:27]} 28. Nd4 {[%emt 0:00:49]} Bxd4 {[%emt 0:00:24] The position is equal.} 29. Bxd4 {[%emt 0:00:06][%cal Og2g4]} ({Reject} 29. Rxd4 Nf6 $11) 29... Kf7 {[%emt 0:01:10]} 30. Rd3 {[%emt 0:01:15]} Rd8 {[%emt 0:28:05] Weighted Error Value: White=0.08 (flawless) /Black=0.07 (flawless)} 1/2-1/2